fUST/lending_fUST_20250920
["ID","MTS","AMOUNT","RATE_DAILY","PERIOD"]
[386522044,1758346242303,-151.0,0.00027889,7]
[386522045,1758346242312,-151.0,0.00027889,7]
[386522046,1758346242322,-151.0,0.00027889,7]
[386522047,1758346242332,-250.461814,0.00027889,7]
[386522048,1758346242341,-151.0,0.00027889,7]
[386522049,1758346242350,-151.0,0.00027889,7]
[386522050,1758346242359,-151.0,0.00027889,7]
[386522051,1758346242370,-152.471119,0.00027889,7]
[386522052,1758346242379,-151.0,0.00027889,7]
[386522053,1758346242388,-158.682786,0.00027889,7]
[386522054,1758346242398,-151.0,0.00027889,7]
[386522055,1758346242407,-151.0,0.00027889,7]
[386522056,1758346242416,-151.437878,0.00027889,7]
[386522057,1758346242426,-151.0,0.00027889,7]
[386522058,1758346242435,-151.0,0.00027889,7]
[386522059,1758346242444,-151.0,0.00027889,7]
[386522060,1758346242453,-156.245975,0.00027889,7]
[386522061,1758346242463,-298.514952,0.00027889,7]
[386522062,1758346242472,-298.514952,0.00027889,7]
[386522063,1758346242481,-298.514952,0.00027889,7]
[386522064,1758346242490,-298.514952,0.00027889,7]
[386522065,1758346242500,-298.514952,0.00027889,7]
[386522066,1758346242509,-298.514952,0.00027889,7]
[386522067,1758346242518,-298.514952,0.00027889,7]
[386522068,1758346242528,-298.514952,0.00027889,7]
[386522069,1758346242537,-151.0,0.00027889,7]
[386522070,1758346242546,-151.0,0.00027889,7]
[386522071,1758346242555,-151.0,0.00027889,7]
[386522072,1758346242564,-151.0,0.00027889,7]
[386522073,1758346242573,-156.312319,0.00027889,7]
[386522074,1758346242583,-151.0,0.00027889,7]
[386522075,1758346242592,-151.0,0.00027889,7]
[386522076,1758346242602,-151.0,0.00027889,7]
[386522077,1758346242612,-151.0,0.00027889,7]
[386522078,1758346242622,-151.0,0.00027889,7]
[386522079,1758346242632,-151.0,0.00027889,7]
[386522080,1758346242641,-151.0,0.00027889,7]
[386522081,1758346242651,-151.0,0.00027889,7]
[386522082,1758346242661,-151.0,0.00027889,7]
[386522083,1758346242671,-151.0,0.00027889,7]
[386522084,1758346242680,-159.856233,0.00027889,7]
[386522085,1758346242693,-284.474576,0.00027889,7]
[386522086,1758346242703,-284.474576,0.00027889,7]
[386522087,1758346242712,-284.474576,0.00027889,7]
[386522088,1758346242722,-284.474576,0.00027889,7]
[386522089,1758346242732,-151.0,0.00027889,7]
[386522090,1758346242741,-152.900561,0.00027889,7]
[386522091,1758346242751,-151.0,0.00027889,7]
[386522092,1758346242761,-500.0,0.00027917,2]
[386522093,1758346242770,-103746.048921,0.00027978,2]
[386522094,1758346242781,-4340.715008,0.00027978,2]
[386522095,1758346242791,-151.0,0.00027978,7]
[386522096,1758346242800,-151.0,0.00027978,7]
[386522097,1758346242809,-151.0,0.00027978,7]
[386522098,1758346242819,-151.0,0.00027978,7]
[386522099,1758346242828,-247.194416,0.00027978,7]
[386522100,1758346242837,-151.0,0.00027978,7]
[386522101,1758346242847,-457.436183,0.00027978,7]
[386522102,1758346242857,-457.436183,0.00027978,7]
[386522103,1758346242867,-457.436183,0.00027978,7]
[386522104,1758346242876,-457.436183,0.00027978,7]
[386522105,1758346242886,-151.0,0.00027978,7]
[386522106,1758346242895,-151.0,0.00027978,7]
[386522107,1758346242904,-480.0,0.00027988,2]
[386522108,1758346242913,-153.25012,0.00027988,7]
[386522109,1758346242923,-151.0,0.00027988,7]
[386522110,1758346242933,-151.0,0.00027988,7]
[386522111,1758346242942,-151.0,0.00027988,7]
[386522112,1758346242952,-151.0,0.00027988,7]
[386522113,1758346242961,-480.0,0.00027988,2]
[386522114,1758346242971,-480.0,0.00027995,2]
[386522115,1758346242981,-599.65,0.00027995,2]
[386522116,1758346242991,-480.0,0.00027995,2]
[386522117,1758346243000,-480.0,0.00027995,2]
[386522118,1758346243009,-707.44,0.00027995,2]
[386522119,1758346243019,-151.0,0.00027999,7]
[386522120,1758346243028,-176.34232,0.00027999,7]
[386522121,1758346243038,-151.0,0.00027999,7]
[386522122,1758346243047,-152.277314,0.00027999,7]
[386522123,1758346243057,-151.0,0.00027999,7]
[386522124,1758346243066,-151.0,0.00027999,7]
[386522125,1758346243076,-151.0,0.00027999,7]
[386522126,1758346243086,-154.426236,0.00027999,7]
[386522127,1758346243095,-151.0,0.00027999,7]
[386522128,1758346243104,-151.0,0.00027999,7]
[386522129,1758346243114,-152.491886,0.00027999,7]
[386522130,1758346243124,-156.52142,0.00027999,7]
[386522131,1758346243134,-151.0,0.00027999,7]
[386522132,1758346243143,-298.514952,0.00027999,7]
[386522133,1758346243153,-298.514952,0.00027999,7]
[386522134,1758346243162,-298.514952,0.00027999,7]
[386522135,1758346243172,-298.514952,0.00027999,7]
[386522136,1758346243181,-151.0,0.00027999,7]
[386522137,1758346243191,-151.0,0.00027999,7]
[386522138,1758346243200,-151.0,0.00027999,7]
[386522139,1758346243209,-151.0,0.00027999,7]
[386522140,1758346243219,-151.0,0.00027999,7]
[386522141,1758346243228,-151.0,0.00027999,7]
[386522142,1758346243237,-151.0,0.00027999,7]
[386522143,1758346243247,-151.0,0.00027999,7]
[386522144,1758346243256,-151.0,0.00027999,7]
[386522146,1758346243265,-211.008041,0.00027999,7]
[386522147,1758346243275,-284.474576,0.00027999,7]
[386522148,1758346243284,-284.474576,0.00027999,7]
[386522149,1758346243293,-284.474576,0.00027999,7]
[386522150,1758346243302,-284.474576,0.00027999,7]
[386522151,1758346243311,-151.0,0.00027999,7]
[386522152,1758346243321,-191.730319,0.00027999,7]
[386522153,1758346243330,-159.53759,0.00027999,7]
[386522154,1758346243339,-151.0,0.00027999,7]
[386522155,1758346243349,-151.0,0.00027999,7]
[386522156,1758346243359,-217.073668,0.00027999,7]
[386522157,1758346243368,-151.0,0.00027999,7]
[386522158,1758346243377,-151.0,0.00027999,7]
[386522159,1758346243387,-151.0,0.00027999,7]
[386522160,1758346243396,-151.0,0.00027999,7]
[386522161,1758346243406,-151.0,0.00027999,7]
[386522162,1758346243415,-151.0,0.00027999,7]
[386522163,1758346243424,-596.276939,0.00027999,7]
[386522164,1758346243433,-596.276939,0.00027999,7]
[386522165,1758346243443,-596.276939,0.00027999,7]
[386522166,1758346243452,-596.276939,0.00027999,7]
[386522167,1758346243461,-242.350998,0.00027999,7]
[386522168,1758346243470,-242.350998,0.00027999,7]
[386522169,1758346243479,-242.350998,0.00027999,7]
[386522170,1758346243488,-242.350998,0.00027999,7]
[386522171,1758346243498,-151.0,0.00027999,7]
[386522172,1758346243507,-151.0,0.00027999,7]
[386522173,1758346243517,-209.807345,0.00027999,7]
[386522174,1758346243526,-1300.38217924,0.00028,2]
[386522175,1758346243536,-2166.17150233,0.00028,120]
[386522176,1758346243545,-165.04619946,0.00028,2]
[386522177,1758346243555,-1110.08,0.00028,2]
[386522178,1758346243565,-500.0,0.00028009,2]
[386522179,1758346243574,-480.0,0.00028053,2]
[386522180,1758346243583,-542.52,0.00028053,2]
[386522181,1758346243593,-480.0,0.00028054,2]
[386522182,1758346243602,-480.0,0.00028054,2]
[386522183,1758346243612,-151.0,0.00028054,7]
[386522184,1758346243621,-151.0,0.00028054,7]
[386522185,1758346243631,-480.0,0.00028054,2]
[386522186,1758346243641,-151.0,0.00028054,7]
[386522187,1758346243650,-480.0,0.00028054,2]
[386522188,1758346243660,-151.0,0.00028054,7]
[386522189,1758346243669,-151.0,0.00028054,7]
[386522190,1758346243679,-378.84,0.00028054,2]
[386522191,1758346243689,-480.0,0.00028054,2]
[386522192,1758346243701,-295.45583986,0.00028054,2]
[386522193,1758346243711,-480.0,0.00028054,2]
[386522194,1758346243720,-480.0,0.00028054,2]
[386522195,1758346243731,-218.86752058,0.00028054,2]
[386522196,1758346243740,-480.0,0.00028054,2]
[386522197,1758346243750,-184.79,0.00028054,2]
[386522198,1758346243760,-480.0,0.00028054,2]
[386522199,1758346243770,-480.0,0.00028054,2]
[386522200,1758346243780,-480.0,0.00028054,2]
[386522201,1758346243790,-480.0,0.00028054,2]
[386522202,1758346243800,-485.7,0.00028054,2]
[386522203,1758346243811,-480.0,0.00028054,2]
[386522204,1758346243822,-480.0,0.00028054,2]
[386522205,1758346243832,-151.0,0.00028054,7]
[386522206,1758346243843,-151.0,0.00028054,7]
[386522207,1758346243859,-151.0,0.00028054,7]
[386522208,1758346243868,-151.0,0.00028054,7]
[386522209,1758346243878,-480.0,0.00028054,2]
[386522210,1758346243887,-480.0,0.00028054,2]
[386522211,1758346243897,-151.0,0.00028054,7]
[386522212,1758346243906,-457.436183,0.00028054,7]
[386522213,1758346243916,-457.436183,0.00028054,7]
[386522214,1758346243925,-457.436183,0.00028054,7]
[386522215,1758346243934,-457.436187,0.00028054,7]
[386522216,1758346243944,-480.0,0.00028054,2]
[386522217,1758346243953,-151.0,0.00028054,7]
[386522218,1758346243963,-151.0,0.00028054,7]
[386522219,1758346243972,-588.12,0.00028055,2]
[386522220,1758346243981,-500.0,0.00028055,2]
[386522221,1758346243991,-480.0,0.00028055,2]
[386522222,1758346244000,-480.0,0.00028055,2]
[386522223,1758346244009,-350.30737221,0.00028117,2]
[386522224,1758346244019,-1110.08,0.0002814,2]
[386522225,1758346244028,-1773.73,0.00028152,2]
[386522226,1758346244038,-480.0,0.00028152,2]
[386522227,1758346244047,-227.876086,0.00028153,7]
[386522228,1758346244057,-500.0,0.00028153,5]
[386522229,1758346244066,-2028.1,0.00028154,2]
[386522230,1758346244075,-151.0,0.00028154,7]
[386522231,1758346244084,-151.0,0.00028154,7]
[386522232,1758346244093,-151.0,0.00028154,7]
[386522233,1758346244103,-151.0,0.00028154,7]
[386522234,1758346244112,-162.195134,0.00028154,7]
[386522235,1758346244121,-210.0,0.0002819,20]
[386522236,1758346244131,-608.29918753,0.00028222,2]
[386522237,1758346244141,-93591.08103601,0.00028223,2]
[386522251,1758346346944,214.45539497,0.000199,2]
[386522252,1758346528853,211.85876107,0.000199,2]
[386522262,1758346722424,212.33088612,0.000199,2]
[386522267,1758346901416,209.61622099,0.000199,2]
[386522291,1758347095694,210.24572066,0.000199,2]
[386522293,1758347226129,-300.0,0.00024205,2]
[386522294,1758347226150,-1356.00379014,0.00024206,2]
[386522295,1758347234091,-484.69066837,0.00024206,2]
[386522296,1758347274443,216.24851189,0.000199,2]
[386522346,1758347432682,-184.00042113,0.00022512,2]
[386522361,1758347438580,-3.97779078,0.00022512,2]
[386522362,1758347438590,-187.1334163,0.00023712,2]
[386522363,1758347438600,-634.5600995,0.00024126,2]
[386522364,1758347438609,-300.0,0.00024197,2]
[386522365,1758347438619,-478.0,0.00024197,2]
[386522366,1758347438629,-1564.98496645,0.00024198,2]
[386522367,1758347438639,-3521.21617452,0.00024198,2]
[386522368,1758347438648,-6253.67992594,0.00024198,2]
[386522369,1758347438657,-500.0,0.00024205,2]
[386522370,1758347438666,-500.0,0.00024205,2]
[386522371,1758347438675,-500.0,0.00024205,2]
[386522372,1758347438684,-549.24690724,0.00024205,2]
[386522373,1758347438694,-500.0,0.00024205,2]
[386522374,1758347438703,-500.0,0.00024205,2]
[386522375,1758347438713,-500.0,0.00024205,2]
[386522376,1758347438722,-500.0,0.00024205,2]
[386522377,1758347438731,-500.0,0.00024205,2]
[386522378,1758347438741,-500.0,0.00024205,2]
[386522379,1758347438750,-500.0,0.00024205,2]
[386522380,1758347438760,-500.0,0.00024205,2]
[386522381,1758347438769,-500.0,0.00024205,2]
[386522382,1758347438779,-500.0,0.00024205,2]
[386522383,1758347438788,-500.0,0.00024205,2]
[386522384,1758347438798,-500.0,0.00024205,2]
[386522385,1758347438807,-500.0,0.00024205,2]
[386522386,1758347438817,-500.0,0.00024205,2]
[386522387,1758347438826,-500.0,0.00024205,2]
[386522388,1758347438836,-500.0,0.00024205,2]
[386522389,1758347438845,-500.0,0.00024205,2]
[386522390,1758347438854,-500.0,0.00024205,2]
[386522391,1758347438865,-2515.96904184,0.00024206,2]
[386522392,1758347438874,-5655.2694138,0.00024206,2]
[386522393,1758347438883,-1505.9326714,0.00024241,2]
[386522394,1758347439000,-216.24851187,0.00024341,2]
[386522395,1758347439010,-5418.7739576,0.00024399,2]
[386522396,1758347439020,-692.79067453,0.00025077,2]
[386522397,1758347439029,-173.32622088,0.00025204,2]
[386522398,1758347439038,-4793.74287555,0.00025205,2]
[386522399,1758347439048,-182.894,0.00025205,9]
[386522400,1758347439058,-161.98507712,0.0002538,2]
[386522401,1758347439068,-160.0,0.00025424,2]
[386522402,1758347439077,-218.03426629,0.00025451,2]
[386522403,1758347439086,-490.25079657,0.0002547,2]
[386522404,1758347439096,-569.73864158,0.0002547,2]
[386522405,1758347439105,-480.0,0.0002547,2]
[386522406,1758347439115,-480.0,0.0002547,2]
[386522407,1758347439124,-480.0,0.0002547,2]
[386522408,1758347439134,-160.0,0.0002554,2]
[386522409,1758347439143,-300.141785,0.00025594,2]
[386522410,1758347439152,-8156.4218569,0.0002563,2]
[386522411,1758347439162,-493.50747714,0.00025744,2]
[386522412,1758347439172,-480.0,0.00025744,2]
[386522413,1758347439181,-480.0,0.00025744,2]
[386522414,1758347439191,-161.98507711,0.00025935,2]
[386522415,1758347439200,-176.54813808,0.0002599,2]
[386522416,1758347439209,-480.0,0.00026001,2]
[386522417,1758347439220,-480.0,0.00026001,2]
[386522418,1758347439229,-297.46853025,0.00026001,2]
[386522419,1758347439239,-490.0010079,0.00026001,2]
[386522420,1758347439248,-488.03606376,0.00026001,2]
[386522421,1758347439257,-487.82382391,0.00026001,2]
[386522422,1758347439267,-500.82303565,0.00026001,2]
[386522423,1758347439276,-488.53872383,0.00026001,2]
[386522424,1758347439285,-491.8626027,0.00026001,2]
[386522425,1758347439295,-489.99276791,0.00026001,2]
[386522426,1758347439304,-483.71174376,0.00026001,2]
[386522427,1758347439313,-428.32484668,0.00026018,2]
[386522428,1758347439324,-480.0,0.00026018,2]
[386522429,1758347439333,-260.0,0.00026088,2]
[386522430,1758347439342,-327.0,0.00026235,2]
[386522431,1758347439351,-848.27550084,0.00026252,2]
[386522432,1758347439361,-233.47853244,0.00026252,2]
[386522433,1758347439370,-480.0,0.00026275,2]
[386522434,1758347439379,-342.08673377,0.00026275,2]
[386522435,1758347439389,-480.0,0.00026292,2]
[386522436,1758347439398,-480.0,0.00026295,2]
[386522437,1758347439408,-480.0,0.00026295,2]
[386522438,1758347439417,-600.06770766,0.00026295,2]
[386522439,1758347439426,-480.0,0.00026295,2]
[386522440,1758347439436,-480.0,0.00026295,2]
[386522441,1758347439445,-283.30462082,0.00026295,2]
[386522442,1758347439454,-480.0,0.00026295,2]
[386522443,1758347439464,-489.51899887,0.00026295,2]
[386522444,1758347439474,-480.0,0.00026295,2]
[386522445,1758347439483,-480.0,0.00026295,2]
[386522446,1758347439492,-480.0,0.00026295,2]
[386522447,1758347439502,-480.0,0.00026295,2]
[386522448,1758347439511,-480.0,0.00026295,2]
[386522449,1758347439520,-480.0,0.00026295,2]
[386522450,1758347439529,-495.41,0.00026295,2]
[386522451,1758347439539,-480.0,0.00026295,2]
[386522452,1758347439548,-480.0,0.00026295,2]
[386522453,1758347439558,-480.0,0.00026347,2]
[386522454,1758347439568,-480.0,0.00026347,2]
[386522455,1758347439577,-480.0,0.00026347,2]
[386522456,1758347439587,-480.0,0.00026347,2]
[386522457,1758347439596,-480.0,0.00026347,2]
[386522458,1758347439605,-480.0,0.00026347,2]
[386522459,1758347439615,-191.70049584,0.00026347,2]
[386522460,1758347439624,-480.0,0.00026347,2]
[386522461,1758347439633,-480.0,0.00026347,2]
[386522462,1758347439643,-703.2,0.00026347,2]
[386522463,1758347439652,-494.00975507,0.00026347,2]
[386522464,1758347439661,-480.0,0.00026347,2]
[386522465,1758347439671,-480.0,0.00026347,2]
[386522466,1758347439680,-472.7138471,0.00026347,2]
[386522467,1758347439690,-480.0,0.00026347,2]
[386522468,1758347439700,-480.0,0.00026347,2]
[386522469,1758347439709,-514.5,0.00026347,2]
[386522470,1758347439718,-480.0,0.00026347,2]
[386522471,1758347439727,-480.0,0.00026347,2]
[386522472,1758347439737,-480.0,0.00026347,2]
[386522473,1758347439748,-609.53609839,0.00026347,2]
[386522474,1758347439757,-480.0,0.00026347,2]
[386522475,1758347439767,-297.86334668,0.00026347,2]
[386522476,1758347439776,-173.94343468,0.00026347,2]
[386522477,1758347439786,-480.0,0.00026347,2]
[386522478,1758347439795,-480.0,0.00026347,2]
[386522479,1758347439804,-480.0,0.00026347,2]
[386522480,1758347439813,-289.09419764,0.00026347,2]
[386522481,1758347439822,-480.0,0.00026347,2]
[386522482,1758347439832,-492.17586035,0.00026347,2]
[386522483,1758347439842,-492.48345588,0.00026347,2]
[386522484,1758347439851,-488.21816104,0.00026347,2]
[386522485,1758347439860,-480.0,0.00026347,2]
[386522486,1758347439870,-480.0,0.00026347,2]
[386522487,1758347439879,-480.0,0.00026347,2]
[386522488,1758347439888,-480.0,0.00026347,2]
[386522489,1758347439896,-480.0,0.00026347,2]
[386522490,1758347439905,-480.0,0.00026347,2]
[386522491,1758347439915,-480.0,0.00026347,2]
[386522492,1758347439924,-480.0,0.00026347,2]
[386522493,1758347439933,-480.0,0.00026347,2]
[386522494,1758347439942,-564.47274283,0.00026347,2]
[386522495,1758347439951,-377.18824703,0.00026347,2]
[386522496,1758347439961,-502.11820812,0.00026347,2]
[386522497,1758347439970,-480.0,0.00026347,2]
[386522498,1758347439979,-513.56439847,0.00026347,2]
[386522500,1758347439989,-492.0763076,0.00026347,2]
[386522501,1758347439997,-482.16324779,0.00026347,2]
[386522502,1758347440006,-481.78751058,0.00026347,2]
[386522503,1758347440015,-494.97038218,0.00026348,2]
[386522504,1758347440024,-485.43787419,0.00026348,2]
[386522505,1758347440033,-480.0,0.00026348,2]
[386522506,1758347440043,-480.0,0.00026348,2]
[386522507,1758347440051,-480.0,0.00026348,2]
[386522508,1758347440060,-482.8,0.00026348,2]
[386522509,1758347440069,-480.0,0.00026348,2]
[386522510,1758347440079,-486.00670462,0.00026348,2]
[386522512,1758347440088,-246.99669069,0.00026348,2]
[386522513,1758347440097,-478.50079093,0.00026348,2]
[386522514,1758347440107,-488.60781392,0.00026348,2]
[386522515,1758347440116,-472.23981743,0.00026348,2]
[386522516,1758347440125,-480.0,0.00026348,2]
[386522517,1758347440134,-480.0,0.00026348,2]
[386522518,1758347440144,-480.0,0.00026348,2]
[386522519,1758347440153,-157.24898937,0.00026348,2]
[386522520,1758347440163,-480.0,0.00026348,2]
[386522521,1758347440172,-480.0,0.00026348,2]
[386522522,1758347440181,-480.0,0.00026348,2]
[386522523,1758347440190,-651.71,0.00026348,2]
[386522524,1758347440199,-480.0,0.00026348,2]
[386522525,1758347440208,-480.0,0.00026348,2]
[386522526,1758347440218,-1845.78,0.00026351,2]
[386522527,1758347440227,-190.36412377,0.00026351,2]
[386522528,1758347440236,-480.0,0.00026351,2]
[386522529,1758347440245,-630.84527316,0.00026373,2]
[386522530,1758347440255,-500.0,0.00026373,2]
[386522531,1758347440265,-510.90172764,0.00026373,2]
[386522532,1758347440274,-501.00349358,0.00026373,2]
[386522533,1758347440283,-500.0,0.00026373,2]
[386522534,1758347440293,-365.77221023,0.00026373,2]
[386522535,1758347440304,-150.40774745,0.00026373,2]
[386522536,1758347440313,-500.0,0.00026373,2]
[386522537,1758347440323,-500.0,0.00026373,2]
[386522538,1758347440332,-500.0,0.00026373,2]
[386522540,1758347440341,-500.0,0.00026373,2]
[386522542,1758347440350,-500.0,0.00026373,2]
[386522544,1758347440359,-506.39719463,0.00026373,2]
[386522545,1758347440368,-500.0,0.00026384,2]
[386522546,1758347440377,-161.98507711,0.00026491,2]
[386522547,1758347440386,-350.30737224,0.00026511,2]
[386522548,1758347440395,-480.0,0.00026549,2]
[386522549,1758347440404,-480.0,0.00026566,2]
[386522551,1758347440414,-378.35237562,0.00026569,2]
[386522552,1758347440423,-480.0,0.00026569,2]
[386522553,1758347440432,-480.0,0.00026569,2]
[386522554,1758347440441,-559.85377828,0.00026569,2]
[386522555,1758347440450,-480.0,0.00026569,2]
[386522556,1758347440463,-480.0,0.00026569,2]
[386522557,1758347440472,-480.0,0.00026569,2]
[386522558,1758347440481,-480.0,0.00026569,2]
[386522559,1758347440491,-480.0,0.00026569,2]
[386522560,1758347440500,-480.0,0.00026569,2]
[386522561,1758347440511,-480.0,0.00026569,2]
[386522562,1758347440520,-183.2755121,0.00026569,2]
[386522563,1758347440529,-151.0,0.00026611,7]
[386522564,1758347440539,-151.0,0.00026611,7]
[386522565,1758347440548,-151.0,0.00026611,7]
[386522566,1758347440557,-151.0,0.00026611,7]
[386522567,1758347440567,-151.0,0.00026611,7]
[386522568,1758347440576,-151.0,0.00026611,7]
[386522569,1758347440585,-151.0,0.00026611,7]
[386522570,1758347440594,-151.0,0.00026611,7]
[386522571,1758347440603,-151.0,0.00026611,7]
[386522572,1758347440613,-151.0,0.00026611,7]
[386522573,1758347440623,-111966.140923,0.00026611,2]
[386522574,1758347440632,-4340.715008,0.00026611,2]
[386522575,1758347440641,-251.5005545,0.00026619,2]
[386522576,1758347440651,-480.0,0.00026621,2]
[386522577,1758347440660,-480.0,0.00026621,2]
[386522578,1758347440670,-480.0,0.00026621,2]
[386522579,1758347440679,-480.0,0.00026621,2]
[386522580,1758347440688,-480.0,0.00026621,2]
[386522581,1758347440697,-504.89701972,0.00026621,2]
[386522582,1758347440707,-507.64710878,0.00026621,2]
[386522583,1758347440716,-703.2,0.00026621,2]
[386522584,1758347440726,-527.54,0.00026621,2]
[386522585,1758347440735,-480.0,0.00026621,2]
[386522586,1758347440744,-480.0,0.00026621,2]
[386522587,1758347440753,-480.0,0.00026621,2]
[386522588,1758347440763,-480.0,0.00026621,2]
[386522589,1758347440773,-480.0,0.00026621,2]
[386522590,1758347440782,-295.45583986,0.00026621,2]
[386522591,1758347440791,-480.0,0.00026621,2]
[386522592,1758347440801,-480.0,0.00026621,2]
[386522593,1758347440811,-218.86752058,0.00026621,2]
[386522594,1758347440820,-480.0,0.00026621,2]
[386522595,1758347440829,-485.7,0.00026621,2]
[386522596,1758347440839,-184.79,0.00026621,2]
[386522597,1758347440848,-480.0,0.00026621,2]
[386522598,1758347440857,-480.0,0.00026621,2]
[386522599,1758347440867,-480.0,0.00026621,2]
[386522600,1758347440876,-480.0,0.00026621,2]
[386522601,1758347440886,-480.0,0.00026621,2]
[386522602,1758347440895,-480.0,0.00026621,2]
[386522603,1758347440904,-480.0,0.00026622,2]
[386522604,1758347440914,-480.0,0.00026622,2]
[386522605,1758347440923,-488.09455744,0.00026622,2]
[386522606,1758347440933,-480.0,0.00026622,2]
[386522607,1758347440942,-197.72043962,0.00026622,2]
[386522609,1758347440951,-480.0,0.00026622,2]
[386522610,1758347440960,-480.0,0.00026622,2]
[386522612,1758347440970,-492.72931885,0.00026622,2]
[386522613,1758347440980,-651.71,0.00026622,2]
[386522614,1758347440989,-480.0,0.00026622,2]
[386522615,1758347440998,-480.0,0.00026622,2]
[386522616,1758347441008,-480.0,0.00026624,2]
[386522617,1758347441017,-480.0,0.00026624,2]
[386522618,1758347441026,-509.92509138,0.00026624,2]
[386522619,1758347441036,-1845.78,0.00026625,2]
[386522620,1758347441045,-480.0,0.00026625,2]
[386522621,1758347441055,-558.13,0.00026628,7]
[386522622,1758347441064,-360.0,0.00026636,2]
[386522623,1758347441074,-503.68325166,0.00026667,2]
[386522624,1758347441083,-558.13,0.00026728,7]
[386522625,1758347441093,-1000.0,0.00026771,2]
[386522626,1758347441102,-1000.0,0.00026771,2]
[386522627,1758347441112,-1000.0,0.00026771,2]
[386522628,1758347441122,-1000.0,0.00026771,2]
[386522629,1758347441131,-1000.0,0.00026771,2]
[386522630,1758347441140,-1000.0,0.00026771,2]
[386522631,1758347441150,-1000.0,0.00026771,2]
[386522632,1758347441159,-799.61045593,0.00026771,2]
[386522633,1758347441168,-350.30737221,0.00026777,2]
[386522634,1758347441178,-480.0,0.00026823,2]
[386522635,1758347441187,-151.0,0.00026823,7]
[386522636,1758347441196,-153.542358,0.00026823,7]
[386522637,1758347441206,-151.0,0.00026823,7]
[386522638,1758347441216,-151.0,0.00026823,7]
[386522639,1758347441226,-151.0,0.00026823,7]
[386522640,1758347441235,-151.0,0.00026823,7]
[386522641,1758347441245,-151.0,0.00026823,7]
[386522642,1758347441255,-151.0,0.00026823,7]
[386522643,1758347441264,-151.0,0.00026823,7]
[386522644,1758347441275,-151.0,0.00026823,7]
[386522645,1758347441284,-457.436183,0.00026823,7]
[386522646,1758347441294,-457.436183,0.00026823,7]
[386522647,1758347441304,-457.436183,0.00026823,7]
[386522648,1758347441313,-457.436183,0.00026823,7]
[386522649,1758347441324,-151.0,0.00026823,7]
[386522650,1758347441333,-151.0,0.00026823,7]
[386522651,1758347441342,-242.350998,0.00026823,7]
[386522652,1758347441352,-242.350998,0.00026823,7]
[386522653,1758347441362,-242.350998,0.00026823,7]
[386522654,1758347441371,-242.350998,0.00026823,7]
[386522655,1758347441381,-596.276939,0.00026823,7]
[386522656,1758347441390,-151.09423873,0.00026823,2]
[386522657,1758347441399,-596.276939,0.00026823,7]
[386522658,1758347441408,-596.276939,0.00026823,7]
[386522659,1758347441418,-596.276939,0.00026823,7]
[386522660,1758347441427,-151.0,0.00026823,7]
[386522661,1758347441436,-151.0,0.00026823,7]
[386522662,1758347441445,-151.0,0.00026823,7]
[386522663,1758347441454,-202.516623,0.00026823,7]
[386522664,1758347441464,-151.0,0.00026823,7]
[386522665,1758347441474,-151.0,0.00026823,7]